bitfinex-derivatives/quotes_SOLF0:USTF0_20250914
["timestamp","ask_amount","ask_price","bid_price","bid_amount"]
[1757863269603,8.05,243.13,243.1,3.42933854]
[1757863270001,8.05,243.13,243.09,3.42933854]
[1757863270207,8.05,243.13,243.07,9.89933854]
[1757863270401,8.05,243.13,243.08,3.42933854]
[1757863270604,8.05,243.13,243.09,6.47]
[1757863271001,8.05,243.13,243.06,3.42933854]
[1757863271205,8.05,243.13,243.07,6.47]
[1757863271406,8.05,243.13,243.07,9.89933854]
[1757863271900,8.05,243.13,243.08,3.42933854]
[1757863272107,8.05,243.13,243.07,3.42933854]
[1757863272307,8.05,243.13,243.08,3.42933854]
[1757863272704,8.05,243.13,243.09,6.46]
[1757863273104,8.05,243.13,243.08,3.42933854]
[1757863273304,8.05,243.13,243.09,3.42933854]
[1757863273502,8.05,243.13,243.08,3.42933854]
[1757863273905,8.05,243.13,243.09,6.46]
[1757863274310,8.05,243.13,243.1,6.46]
[1757863274512,8.05,243.13,243.11,6.46]
[1757863275105,8.05,243.13,243.11,0.42]
[1757863275314,8.05,243.13,243.12,6.46]
[1757863276115,8.05,243.13,243.11,6.46]
[1757863276911,8.05,243.13,243.12,6.46]
[1757863277518,8.05,243.13,243.12,9.88933854]
[1757863277918,8.05,243.13,243.12,6.88]
[1757863278820,8.05,243.13,243.12,11.46006721]
[1757863279016,6.43,243.27,243.13,0.57]
[1757863279221,6.43,243.27,243.17,0.57]
[1757863279420,6.43,243.27,243.17,3.42176383]
[1757863279626,6.43,243.27,243.18,0.57]
[1757863279813,6.43,243.27,243.17,3.42176383]
[1757863280119,6.43,243.32,243.2,3.99176383]
[1757863280321,6.43,243.32,243.21,3.42176383]
[1757863282118,6.43,243.32,243.2,3.99176383]
[1757863283826,6.43,243.32,243.21,3.42176383]
[1757863284222,6.43,243.32,243.21,0.57]
[1757863285931,8.13813379,243.32,243.18,3.42176383]
[1757863286136,6.43,243.31,243.18,51.88]
[1757863287633,1.70813379,243.28,243.17,3.42176383]
[1757863287834,1.70813379,243.28,243.16,0.57]
[1757863287835,6.43,243.27,243.16,0.57]
[1757863288041,1.70813379,243.28,243.14,380.34]
[1757863288235,6.43,243.27,243.14,380.34]
[1757863288430,1.70813379,243.28,243.14,276.26]
[1757863288832,6.43,243.23,243.14,276.26]
[1757863289335,6.43,243.23,243.1,102.73413155]
[1757863289537,1.70813379,243.24,243.1,206.79413155]
[1757863289833,6.43,243.18,243.1,102.73413155]
[1757863292235,1.09065799,243.22,243.11,0.57]
[1757863293534,6.43,243.21,243.1,102.73413155]
[1757863293840,6.43,243.18,243.1,102.73413155]
[1757863297836,6.43,243.18,243.11,1.09065799]
[1757863300738,6.43,243.23,243.14,1.09065799]
[1757863301038,6.43,243.18,243.09,3.42176383]
[1757863301232,6.43,243.18,243.08,3.42176383]
[1757863301431,6.42,243.18,243.07,64.30176383]
[1757863301636,6.42,243.18,243.07,107.42176383]
[1757863301836,1.09065799,243.16,243.07,104.0]
[1757863302037,1.09065799,243.16,243.04,1.66065799]
[1757863302038,6.42,243.15,243.04,1.66065799]
[1757863302235,1.09065799,243.13,243.02,3.42176383]
[1757863302436,1.09065799,243.13,243.0,281.28242182]
[1757863302636,1.09065799,243.13,243.01,104.0]
[1757863302842,6.42,243.12,243.01,104.0]
[1757863303044,6.42,243.12,243.0,277.86065799]
[1757863303241,6.42,243.12,243.01,107.42176383]
[1757863303440,6.42,243.12,243.04,0.57]
[1757863303644,6.42,243.17,243.06,1.09065799]
[1757863303841,1.09065799,243.18,243.07,40.38]
[1757863304037,6.42,243.17,243.07,40.38]
[1757863304234,6.42,243.17,243.06,1.09065799]
[1757863304235,6.42,243.17,243.06,75.05065799]
[1757863304439,1.09065799,243.18,243.06,75.05065799]
[1757863304639,6.42,243.17,243.06,1.09065799]
[1757863304844,1.09065799,243.18,243.06,105.09065799]
[1757863305045,1.09065799,243.18,243.06,1.09065799]
[1757863305245,6.42,243.17,243.05,107.42176383]
[1757863305445,6.42,243.18,243.06,1.09065799]
[1757863310048,6.42,243.18,243.06,4.51242182]
[1757863310352,6.42,243.18,243.06,1.09065799]
[1757863311052,6.42,243.18,243.06,4.51242182]
[1757863313554,6.42,243.18,243.07,0.57]
[1757863314552,6.42,243.18,243.09,1.09065799]
[1757863315155,6.42,243.18,243.12,1.09065799]
[1757863315357,6.42,243.18,243.15,1.09065799]
[1757863317054,6.67,243.18,243.1,0.57]
[1757863317264,6.67,243.18,243.12,1.09065799]
[1757863317957,9.84,243.19,243.16,0.57]
[1757863318161,9.84,243.19,243.18,1.09065799]
[1757863319160,9.84,243.19,243.18,1.66065799]
[1757863319453,16.51,243.19,243.15,3.42176383]
[1757863319659,9.84,243.19,243.17,1.09065799]
[1757863320355,9.84,243.19,243.18,0.57]
[1757863321462,9.84,243.19,243.18,3.99176383]
[1757863322360,9.84,243.19,243.18,104.53]
[1757863322954,9.84,243.19,243.18,104.95]
[1757863323663,9.84,243.19,243.18,4.41176383]
[1757863323961,9.84,243.19,243.18,108.37176383]
[1757863324164,9.84,243.19,243.18,104.95]
[1757863324660,10.25,243.24,243.19,3.6986]
[1757863324864,10.25,243.24,243.23,1.66065799]
[1757863325164,10.25,243.24,243.23,5.08543984]
[1757863325666,5.25,243.24,243.23,5.08543984]
[1757863325966,6.67,243.32,243.23,5.08543984]
[1757863326363,6.67,243.32,243.24,103.94]
[1757863327767,6.67,243.32,243.23,5.08543984]
[1757863327963,6.67,243.32,243.24,103.92]
[1757863328369,6.67,243.32,243.26,1.09065799]
[1757863328867,6.67,243.32,243.26,105.01065799]
[1757863329269,6.67,243.36,243.26,105.01065799]
[1757863329568,1.09065799,243.37,243.26,105.01065799]
[1757863329769,6.67,243.36,243.25,103.9]
[1757863329960,1.09065799,243.37,243.25,103.9]
[1757863330166,6.67,243.36,243.25,103.9]
[1757863330563,1.09065799,243.34,243.26,103.9]
[1757863330762,6.67,243.33,243.22,5.08543984]
[1757863330958,1.09065799,243.34,243.25,103.9]
[1757863331265,6.67,243.33,243.22,5.08543984]
[1757863331563,6.96,243.33,243.24,103.9]
[1757863331765,1.09065799,243.34,243.24,103.9]
[1757863332064,1.09065799,243.34,243.22,1.66065799]
[1757863332266,1.09065799,243.34,243.23,103.9]
[1757863332464,6.96,243.33,243.23,103.9]
[1757863332665,1.09065799,243.34,243.22,0.57]
[1757863332862,6.96,243.32,243.22,104.47]
[1757863333869,6.96,243.32,243.22,105.56065799]
[1757863334567,6.96,243.32,243.22,1.66065799]
[1757863334768,6.96,243.32,243.23,103.88]
[1757863334965,6.96,243.32,243.24,0.57]
[1757863335170,6.96,243.36,243.24,0.57]
[1757863335667,6.96,243.36,243.25,103.88]
[1757863336369,6.96,243.36,243.26,0.57]
[1757863338173,6.96,243.36,243.27,103.86]
[1757863338471,6.96,243.36,243.26,0.57]
[1757863338673,6.96,243.36,243.26,38.05]
[1757863339473,6.96,243.36,243.27,0.57]
[1757863340968,6.96,243.36,243.28,81.08]
[1757863341277,6.96,243.36,243.28,103.84]
[1757863341471,6.96,243.36,243.27,104.41]
[1757863342271,1.09065799,243.4,243.27,103.84]
[1757863342473,6.96,243.32,243.21,3.42478185]
[1757863342677,6.96,243.25,243.16,3.42478185]
[1757863342873,6.96,243.22,243.12,0.57]
[1757863343071,1.09065799,243.21,243.12,0.57]
[1757863343478,6.96,243.22,243.13,39.06]
[1757863343781,6.96,243.22,243.12,0.57]
[1757863344279,8.05065799,243.22,243.12,0.57]
[1757863345083,1.09065799,243.19,243.08,4.51543984]
[1757863345384,6.96,243.18,243.09,103.82]
[1757863345579,6.96,243.18,243.07,3.99478185]
[1757863346179,1.09065799,243.16,243.07,0.57]
[1757863346381,6.96,243.15,243.05,3.42478185]
[1757863346580,6.96,243.15,243.05,40.68]
[1757863346882,6.96,243.15,243.04,1.09065799]
[1757863347084,1.09065799,243.13,243.02,3.99478185]
[1757863347475,6.96,243.15,243.03,103.82]
[1757863347683,1.09065799,243.14,243.03,103.82]
[1757863347881,1.09065799,243.14,243.02,3.99478185]
[1757863348277,6.96,243.15,243.03,53.74]
[1757863348478,6.96,243.15,243.04,1.66065799]
[1757863349182,6.96,243.15,243.04,105.48065799]
[1757863349575,6.96,243.15,243.04,1.66065799]
[1757863349778,6.96,243.15,243.04,72.89]
[1757863350184,6.96,243.15,243.05,103.82]
[1757863350588,1.70486622,243.24,243.06,3.42478185]
[1757863350784,7.64,243.25,243.09,0.57]
[1757863350785,6.96,243.23,243.09,0.57]
[1757863350992,6.96,243.23,243.09,3.99478185]
[1757863351481,6.96,243.23,243.09,0.57]
[1757863351684,6.96,243.23,243.1,0.57]
[1757863351884,6.96,243.23,243.13,0.57]
[1757863352483,6.96,243.23,243.15,0.57]
[1757863352786,6.96,243.32,243.16,1.70486622]
[1757863353178,14.12,243.34,243.16,30.90486622]
[1757863353488,6.96,243.33,243.16,30.90486622]
[1757863354086,15.82486622,243.34,243.16,30.90486622]
[1757863354285,6.96,243.33,243.16,30.90486622]
[1757863354685,6.96,243.33,243.16,1.70486622]
[1757863354884,15.82486622,243.34,243.16,34.12486622]
[1757863355082,6.96,243.33,243.16,34.12486622]
[1757863355289,15.82486622,243.34,243.16,45.56486622]
[1757863355589,6.96,243.33,243.16,1.70486622]
[1757863355790,15.11486622,243.33,243.16,1.70486622]
[1757863356982,15.11486622,243.33,243.15,0.57]
[1757863357892,13.41,243.33,243.17,3.99478185]
[1757863358095,13.41,243.33,243.18,0.57]
[1757863359195,13.41,243.33,243.18,3.99478185]
[1757863359893,13.41,243.33,243.19,3.99478185]
[1757863360485,13.41,243.33,243.2,0.57]
[1757863360790,13.41,243.33,243.2,3.99478185]
[1757863360984,13.41,243.33,243.2,0.57]
[1757863361190,7.07,243.31,243.19,3.42478185]
[1757863361393,7.07,243.31,243.17,3.42478185]
[1757863362196,7.07,243.31,243.17,3.98478185]
[1757863362794,7.07,243.31,243.17,5.68964807]
[1757863362992,7.07,243.31,243.2,0.56]
[1757863364195,7.07,243.31,243.2,3.98478185]
[1757863364494,7.07,243.31,243.2,0.56]
[1757863364696,7.07,243.31,243.2,3.98478185]
[1757863367800,7.07,243.31,243.2,0.56]
[1757863368005,7.07,243.31,243.2,3.98478185]
[1757863368200,7.07,243.31,243.21,5.68964807]
[1757863368399,6.45,243.33,243.24,0.56]
[1757863368602,6.45,243.33,243.24,3.98478185]
[1757863369408,6.45,243.33,243.26,3.42478185]
[1757863369604,7.07,243.32,243.25,3.42478185]
[1757863369901,7.07,243.32,243.23,3.42478185]
[1757863370096,7.07,243.32,243.2,5.12637581]
[1757863370097,7.07,243.32,243.24,3.42478185]
[1757863372903,7.07,243.32,243.23,3.42478185]
[1757863374505,7.07,243.32,243.22,3.42478185]
[1757863377702,7.07,243.32,243.23,0.57]
[1757863380317,7.07,243.32,243.23,3.99478185]
[1757863380817,7.07,243.32,243.23,3.98843553]
[1757863382714,7.07,243.32,243.22,3.41843553]
[1757863382917,7.07,243.32,243.21,3.41843553]
[1757863383219,7.07,243.32,243.19,3.41843553]
[1757863383515,7.07,243.32,243.22,3.41843553]
[1757863385414,7.07,243.32,243.21,3.41843553]
[1757863386818,7.07,243.32,243.22,3.41843553]
[1757863390022,7.07,243.32,243.23,3.41843553]
[1757863390425,7.07,243.32,243.25,3.41843553]
[1757863390622,7.07,243.32,243.24,3.41843553]
[1757863391220,7.07,243.32,243.25,3.41843553]
[1757863391522,7.07,243.32,243.24,3.41843553]
[1757863392325,7.07,243.32,243.25,3.41843553]
[1757863394324,7.07,243.32,243.26,3.41843553]
[1757863394522,7.07,243.32,243.25,3.41843553]
[1757863394822,1.70486622,243.28,243.22,3.41843553]
[1757863395026,7.1,243.27,243.19,3.41843553]
[1757863395420,1.70486622,243.24,243.16,3.41843553]
[1757863395625,7.1,243.23,243.16,3.41843553]
[1757863396824,1.70486622,243.31,243.18,3.41843553]
[1757863397018,7.1,243.3,243.19,3.41843553]
[1757863397221,7.1,243.3,243.2,3.41843553]
[1757863397624,7.1,243.3,243.19,3.41843553]
[1757863397826,7.1,243.3,243.2,3.41843553]
[1757863399534,7.1,243.3,243.22,3.41843553]
[1757863399732,7.1,243.3,243.23,3.41843553]
[1757863400232,7.1,243.3,243.24,3.41843553]
[1757863400428,7.1,243.3,243.25,3.41843553]
[1757863400625,6.45,243.33,243.26,0.57]
[1757863400828,6.45,243.33,243.26,3.98843553]
[1757863404332,7.1,243.32,243.26,3.41843553]
[1757863404532,7.1,243.32,243.25,3.41843553]
[1757863404831,7.1,243.32,243.24,3.41843553]
[1757863406228,7.1,243.32,243.25,3.41843553]
[1757863410832,7.1,243.32,243.26,3.41843553]
[1757863411229,15.0,243.32,243.26,3.41843553]
[1757863412726,7.9,243.32,243.29,3.98843553]
[1757863413836,7.1,243.31,243.28,3.41843553]
[1757863414437,7.9,243.32,243.29,0.57]
[1757863414739,15.0,243.32,243.28,3.41843553]
[1757863415142,7.9,243.32,243.28,3.41843553]
[1757863415935,7.9,243.32,243.26,3.41843553]
[1757863416134,7.1,243.31,243.26,3.41843553]
[1757863416334,1.08952392,243.31,243.26,3.41843553]
[1757863416534,7.1,243.3,243.26,3.41843553]
[1757863416834,1.08952392,243.31,243.26,3.41843553]
[1757863417039,7.1,243.3,243.26,3.41843553]
[1757863417439,1.08952392,243.31,243.27,3.41843553]
[1757863417833,1.08952392,243.31,243.26,3.41843553]
[1757863418140,7.1,243.3,243.26,3.41843553]
[1757863418538,1.08952392,243.31,243.26,3.41843553]
[1757863419234,4.54141806,243.52,243.31,0.57]
[1757863419432,7.75,243.47,243.41,3.43631046]
[1757863419632,7.75,243.46,243.41,3.43631046]
[1757863419840,4.54141806,243.61,243.39,0.57]
[1757863419841,7.1,243.48,243.4,3.43631046]
[1757863420039,0.82,243.43,243.4,3.43631046]
[1757863420239,0.82,243.43,243.39,4.00631046]
[1757863420434,0.82,243.43,243.42,3.43631046]
[1757863420837,8.57,243.43,243.4,3.43631046]
[1757863421142,8.57,243.43,243.34,7.51147948]
[1757863421143,7.75,243.41,243.39,3.43631046]
[1757863421342,0.82,243.4,243.39,3.43631046]
[1757863421643,6.44,243.47,243.39,3.99631046]
[1757863421846,8.57,243.43,243.39,3.99631046]
[1757863422243,0.82,243.41,243.39,3.43631046]
[1757863422543,0.82,243.41,243.38,3.99631046]
[1757863423633,0.82,243.41,243.39,3.43631046]
[1757863424241,7.75,243.41,243.39,3.43631046]
[1757863424443,7.75,243.41,243.38,3.99631046]
[1757863425250,7.75,243.41,243.38,0.56]
[1757863427342,7.75,243.41,243.37,3.43631046]
[1757863427649,15.01,243.4,243.36,3.43631046]
[1757863427843,8.57,243.4,243.36,3.99631046]
[1757863428145,0.82,243.4,243.37,0.56]
[1757863428651,0.82,243.4,243.36,3.43631046]
[1757863428846,0.82,243.4,243.38,0.56]
[1757863431147,6.44,243.45,243.38,0.56]
[1757863431351,0.82,243.41,243.4,0.56]
[1757863431554,0.82,243.41,243.4,3.99631046]
[1757863431740,0.82,243.41,243.4,0.56]
[1757863433945,0.82,243.41,243.38,3.43631046]
[1757863434153,0.82,243.41,243.38,3.99631046]
[1757863434340,0.82,243.41,243.39,0.56]
[1757863435347,0.82,243.41,243.39,3.99631046]
[1757863436452,0.82,243.41,243.4,0.56]
[1757863436652,6.44,243.45,243.4,3.99631046]
[1757863436853,8.57,243.42,243.4,3.99631046]
[1757863437151,8.57,243.42,243.4,0.56]
[1757863437548,8.57,243.42,243.39,3.43631046]
[1757863437549,0.82,243.42,243.39,3.43631046]
[1757863438052,0.82,243.42,243.4,0.56]
[1757863438249,0.82,243.42,243.39,3.43631046]
[1757863438449,6.95,243.49,243.4,3.99631046]
[1757863438645,8.57,243.45,243.4,3.43631046]
[1757863438851,7.75,243.46,243.4,3.43631046]
[1757863439051,6.95,243.49,243.42,3.43631046]
[1757863439252,7.75,243.47,243.42,3.43631046]
[1757863439554,0.82,243.48,243.42,3.43631046]
[1757863439755,6.95,243.54,243.43,1.08952392]
[1757863439953,7.75,243.52,243.48,3.43631046]
[1757863440151,7.77,243.54,243.48,3.43631046]
[1757863440455,15.52,243.54,243.5,3.43631046]
[1757863440651,7.77591223,243.53,243.49,3.99631046]
[1757863441050,6.95,243.52,243.49,3.43631046]
[1757863441248,6.95,243.52,243.48,3.43631046]
[1757863441452,6.95,243.52,243.48,3.99631046]
[1757863442150,0.02591223,243.53,243.48,3.43631046]
[1757863442356,7.75,243.51,243.48,3.43631046]
[1757863442556,6.95,243.5,243.48,3.43631046]
[1757863444262,0.82,243.51,243.47,3.43631046]
[1757863444463,15.52,243.51,243.47,3.99631046]
[1757863444654,7.77,243.49,243.47,3.43631046]
[1757863444857,7.77,243.49,243.46,3.43631046]
[1757863445167,7.75,243.48,243.46,3.43631046]
[1757863445556,7.77,243.49,243.46,3.43631046]
[1757863445763,7.75,243.48,243.46,3.43631046]
[1757863446265,7.77,243.49,243.46,3.43631046]
[1757863446467,14.7,243.48,243.45,3.43631046]
[1757863446656,15.52,243.48,243.45,3.43631046]
[1757863446857,0.82,243.46,243.45,3.43631046]
[1757863447061,0.82,243.46,243.4,3.43631046]
[1757863447262,7.75,243.41,243.39,3.43631046]
[1757863447461,14.7,243.4,243.38,3.43631046]
[1757863449066,14.7,243.4,243.37,3.43631046]
[1757863449468,14.7,243.4,243.38,3.43631046]
[1757863450069,14.7,243.4,243.37,3.43631046]
[1757863451270,14.7,243.4,243.38,3.43631046]
[1757863451670,7.09,243.45,243.38,3.43631046]
[1757863451863,7.75,243.4,243.38,3.43631046]
[1757863452372,8.57,243.4,243.38,3.43631046]
[1757863452570,15.66,243.4,243.38,3.43631046]
[1757863453273,15.66,243.4,243.39,3.43631046]
[1757863453573,0.66,243.4,243.39,3.43631046]
[1757863453966,0.02591085,243.41,243.39,3.43631046]
[1757863454171,0.02591085,243.41,243.4,3.43631046]
[1757863454368,0.02591085,243.41,243.4,10.30631046]
[1757863454672,0.02591085,243.41,243.4,3.43631046]
[1757863454867,0.02591085,243.41,243.4,6.87]
[1757863455872,0.02591085,243.41,243.4,11.43637581]
[1757863456069,0.02591085,243.41,243.4,110.75]
[1757863456568,0.02591085,243.41,243.4,117.69147948]
[1757863457367,7.09,243.53,243.41,3.6953]
[1757863457673,277.02952392,243.6,243.49,3.40140664]
[1757863457873,277.02952392,243.6,243.46,5.62473277]
[1757863457874,7.09,243.59,243.48,3.40140664]
[1757863458775,7.09,243.59,243.49,3.40140664]
[1757863459865,1.08952392,243.58,243.49,3.40140664]
[1757863460068,7.09,243.57,243.49,3.40140664]
[1757863462476,7.09,243.57,243.51,0.02683182]
[1757863463172,7.09,243.57,243.51,3.42823846]
[1757863466975,7.09,243.59,243.52,3.40140664]
[1757863468282,7.09,243.59,243.53,3.40140664]
[1757863468475,7.09,243.59,243.52,3.40140664]
[1757863469183,7.09,243.59,243.51,3.42823846]
[1757863470478,7.09,243.59,243.53,3.40140664]
[1757863470784,8.17952392,243.65,243.57,3.40140664]
[1757863471275,1.08952392,243.64,243.56,3.40140664]
[1757863471477,7.09,243.63,243.56,3.40140664]
[1757863472077,7.09,243.63,243.57,3.40140664]
[1757863472273,6.06,243.66,243.61,3.40140664]
[1757863472478,7.09,243.65,243.59,3.40140664]
[1757863472877,7.09,243.65,243.58,3.40140664]
[1757863473278,8.17952392,243.65,243.58,3.40140664]
[1757863473474,8.17952392,243.65,243.57,3.42807611]
[1757863473873,7.09,243.65,243.57,0.02666947]
[1757863475685,7.09,243.65,243.57,3.42807611]
[1757863476684,7.09,243.65,243.58,3.40140664]
[1757863477279,7.09,243.65,243.57,3.42807611]
[1757863478176,7.09,243.65,243.57,0.02666947]
[1757863478784,13.15,243.66,243.59,3.40140664]
[1757863479186,6.06,243.66,243.59,3.40140664]
[1757863479892,6.06,243.66,243.61,3.40140664]
[1757863480081,6.06,243.66,243.62,6.87]
[1757863480281,6.06,243.66,243.63,6.87]
[1757863480583,6.06,243.66,243.62,3.40140664]
[1757863480790,6.06,243.66,243.63,6.87]
[1757863480982,6.06,243.66,243.62,3.40140664]
[1757863481189,6.06,243.66,243.63,6.81]
[1757863481494,6.06,243.66,243.64,6.81]
[1757863481788,6.06,243.66,243.65,6.81]
[1757863481984,6.06,243.66,243.65,10.21140664]
[1757863482791,6.06,243.66,243.65,6.81]
[1757863484195,6.44,243.75,243.65,6.81]
[1757863484591,6.44,243.75,243.65,10.21140664]
[1757863484995,6.44,243.75,243.66,5.09954365]
[1757863485496,6.44,243.75,243.68,3.40140664]
[1757863485693,6.44,243.75,243.67,3.40140664]
[1757863486290,6.44,243.8,243.68,6.81]
[1757863486498,6.49,243.77,243.68,6.81]
[1757863487694,12.93,243.77,243.68,6.81]
[1757863488086,12.93,243.77,243.68,10.20376799]
[1757863488287,12.93,243.77,243.68,6.81]
[1757863488997,12.93,243.77,243.66,3.39376799]
[1757863489194,12.93,243.77,243.62,3.39376799]
[1757863489493,12.93,243.77,243.61,3.39376799]
[1757863489699,1.69813701,243.74,243.6,10.20376799]
[1757863489898,6.68,243.73,243.67,0.02686757]
[1757863492993,6.68,243.69,243.58,3.39376799]
[1757863493298,6.68,243.69,243.57,3.39376799]
[1757863493695,6.68,243.69,243.59,3.39376799]
[1757863494297,6.68,243.69,243.6,3.39376799]
[1757863496502,6.68,243.66,243.6,3.39376799]
[1757863498102,0.0264487,243.67,243.62,3.39376799]
[1757863498300,0.0264487,243.67,243.66,8.61813701]
[1757863498500,6.68,243.76,243.66,13.15334586]
[1757863498699,6.68,243.76,243.7,1.69813701]
[1757863499797,6.68,243.76,243.69,3.39581829]
[1757863499994,6.68,243.76,243.67,3.39581829]
[1757863500300,6.68,243.76,243.66,12.0139553]
[1757863500700,6.68,243.76,243.66,1.69813701]
[1757863501004,6.68,243.76,243.66,5.0939553]
[1757863501305,6.68,243.76,243.69,0.02597245]
[1757863504008,6.11,243.75,243.69,0.02597245]
[1757863505009,6.68,243.74,243.69,0.02597245]
[1757863505308,6.11,243.75,243.69,0.02597245]
[1757863505911,6.68,243.74,243.69,0.02597245]
[1757863506505,6.11,243.75,243.69,0.02597245]
[1757863506707,6.68,243.74,243.69,0.02597245]
[1757863508808,6.11,243.75,243.69,0.02597245]
[1757863509210,6.68,243.74,243.69,0.02597245]
[1757863511704,6.68,243.74,243.65,3.39581829]
[1757863511705,6.87,243.7,243.64,3.39581829]
[1757863514416,6.87,243.73,243.65,3.39581829]
[1757863515009,6.87,243.69,243.61,3.39581829]
[1757863515413,6.87,243.69,243.58,4.53520885]
[1757863515414,6.87,243.69,243.62,3.39581829]
[1757863515616,6.87,243.69,243.6,3.39581829]
[1757863515813,8.56813701,243.69,243.6,3.39581829]
[1757863516016,8.56813701,243.69,243.61,3.39581829]
[1757863516214,0.0262042,243.67,243.61,3.39581829]
[1757863516415,0.0262042,243.67,243.6,3.39581829]
[1757863516816,0.0262042,243.67,243.61,3.39581829]
[1757863517310,0.0262042,243.67,243.6,3.39581829]
[1757863519115,0.0262042,243.67,243.61,3.39581829]
[1757863519313,0.0262042,243.67,243.62,6.46]
[1757863519618,0.0262042,243.67,243.66,9.85581829]
[1757863520015,6.87,243.74,243.66,9.85581829]
[1757863520318,6.87,243.74,243.67,3.39581829]
[1757863521320,6.87,243.74,243.68,4.42128403]
[1757863521517,14.67813701,243.75,243.69,1.02546574]
[1757863521813,6.87,243.74,243.7,1.02546574]
[1757863522018,6.87,243.74,243.71,1.02546574]
[1757863522219,7.80813701,243.75,243.72,1.02546574]
[1757863522418,6.87,243.74,243.73,1.02546574]
[1757863523613,6.87,243.74,243.7,3.39581829]
[1757863523814,12.98,243.75,243.71,4.42120712]
[1757863524020,12.98,243.75,243.72,1.02538883]
[1757863524219,12.98,243.75,243.73,1.02538883]
[1757863524420,12.98,243.75,243.74,1.02538883]
[1757863524619,6.11,243.75,243.74,1.02538883]
[1757863525022,12.98,243.75,243.74,1.02538883]
[1757863525921,6.11,243.75,243.74,1.02538883]
[1757863526513,12.98,243.75,243.74,1.02538883]
[1757863526716,6.11,243.75,243.74,1.02538883]
[1757863526917,6.11,243.75,243.74,10.88120712]
[1757863527122,6.11,243.75,243.74,7.48538883]
[1757863527824,6.87,243.96,243.75,6.46]
[1757863528125,6.87,243.96,243.86,3.3978357]
[1757863528424,1.69813701,243.95,243.87,1.02538883]
[1757863528618,6.87,243.96,243.88,1.02538883]
[1757863528825,6.87,243.96,243.89,1.02538883]
[1757863529122,6.87,243.96,243.84,6.46]
[1757863529123,6.87,243.96,243.9,4.2544097]
[1757863529319,6.87,243.96,243.9,0.02636457]
[1757863530320,19.37110279,243.96,243.9,0.02636457]
[1757863530620,6.87,243.96,243.9,0.02636457]
[1757863530920,6.87,243.92,243.84,3.1950378]
[1757863531121,6.87,243.92,243.78,3.3978357]
[1757863531325,6.87,243.92,243.79,4.21930602]
[1757863531521,6.87,243.92,243.8,4.21930602]
[1757863531721,6.87,243.92,243.81,4.21930602]
[1757863531920,6.87,243.92,243.82,4.21930602]
[1757863532120,34.72368512,243.99,243.76,3.3978357]
[1757863532121,6.87,243.88,243.76,3.3978357]
[1757863532327,6.87,243.86,243.77,4.22294602]
[1757863532525,6.87,243.86,243.78,4.22294602]
[1757863532823,6.87,243.86,243.79,4.22294602]
[1757863533025,6.87,243.86,243.8,1.02503308]
[1757863533325,6.87,243.86,243.73,3.3978357]
[1757863533528,6.87,243.86,243.74,4.224671]
[1757863533726,6.87,243.86,243.75,4.224671]
[1757863533928,6.87,243.86,243.76,4.224671]
[1757863534126,6.87,243.86,243.77,4.224671]
[1757863534326,6.87,243.86,243.78,4.224671]
[1757863534627,6.87,243.86,243.79,1.02513037]
[1757863534927,1.69813701,243.87,243.72,3.3978357]
[1757863534928,6.87,243.83,243.72,3.3978357]